Cogmind - Beta 12 @@@ ROGUE MODE // 2023.12.18 @ 22:47:58 Player: Ischenous Result: Destroyed by as-81900 with Assembled Blade Performance ------------- Evolutions (0) 0 Regions Visited (2) 400 Robots Destroyed (10) 50 Value Destroyed (229) 229 Prototype IDs (0) 0 Alien Tech Used (0) 0 Bonus (0) 0 TOTAL SCORE: 679 Bonus ------- None Cogmind --------- Core Integrity 0/250 Matter 294/300 Energy 250/250 System Corruption 0% Temperature Cool (0) Movement Core (200) Ox3 Location -10/Mines Parts ------- > --- POWER (1) -------- Ion Engine > --- PROPULSION (2) --- (None) > --- UTILITY (2) ------ Small Storage Unit > --- WEAPON (2) ------- Assault Rifle > --- INVENTORY (8) ---- Ion Engine Aluminum Leg Improved Terrain Scanner Seismic Detector Targeting Computer ECM Suite Mining Laser Peak State ------------ > --- POWER ------------ Ion Engine > --- PROPULSION ------- Aluminum Leg Aluminum Leg > --- UTILITY ---------- Small Storage Unit Improved Terrain Scanner > --- WEAPON ----------- EM Pulse Gun Light Assault Rifle > --- INVENTORY -------- Ion Engine Aluminum Leg Improved Terrain Scanner Seismic Detector Targeting Computer ECM Suite Assault Rifle Welding Torch [Rating: 10] Favorites ----------- Power Ion Engine Engine Ion Engine Propulsion Aluminum Leg Leg Aluminum Leg Utility Small Storage Unit Device Improved Terrain Scanner Storage Small Storage Unit Weapon EM Pulse Gun Energy Gun EM Pulse Gun Ballistic Gun Light Assault Rifle Special Weapon Welding Torch Build | -11 -10 -10 ------- Run | Jun Mat Min Slots Evolved . | . . . Power . | . . . Propulsion . | . . . Utility . | . . . Weapon . | . . . Parts Attached 13 | 5 6 2 Power 1 | 1 . . Engine 1 | 1 . . Core . | . . . Reactor . | . . . Propulsion 5 | 2 3 . Treads . | . . . Leg 5 | 2 3 . Wheel . | . . . Hover . | . . . Flight . | . . . Utility 3 | 1 2 . Device 1 | . 1 . Storage 2 | 1 1 . Processor . | . . . Hackware . | . . . Protection . | . . . Artifact . | . . . Weapon 4 | 1 1 2 Energy Gun 1 | 1 . . Energy Cannon . | . . . Ballistic Gun 2 | . 1 1 Ballistic Cannon . | . . . Launcher . | . . . Special Weapon 1 | . . 1 Impact Weapon . | . . . Slashing Weapon . | . . . Piercing Weapon . | . . . Special Melee Weapon . | . . . Unidentified Prototypes . | . . . Parts Lost 5 | . 1 4 Power . | . . . Propulsion 2 | . . 2 Utility 1 | . . 1 Weapon 2 | . 1 1 Highest Loss Streak 4 | . 1 4 To Critical Strikes . | . . . Average Slot Usage (%) 90 | . 85 97 Engine 14 | . 14 14 Leg 27 | . 28 27 Device 13 | . 14 13 Storage 14 | . 14 14 Energy Gun 6 | . 11 . Ballistic Gun 7 | . 3 13 Special Weapon 4 | . . 13 Naked Turns . | . . . Heaviest Build 14 | 12 14 13 Greatest Support 20 | 20 20 20 Greatest Overweight (x) . | . . . Average Overweight (x) . | . . . Largest Inventory Capacity 8 | 8 8 8 Average Capacity 7 | 7 8 8 Most Carried 8 | 5 8 8 Average Carried 6 | 4 6 7 Final Capacity 8 | 8 8 8 Final Carried 8 | 5 8 7 Class Distribution -------------------- 100% | Mutant Dominant Class ---------------- Mutant | -10/Materials Mutant | -10/Mines Resources | -11 -10 -10 ----------- Run | Jun Mat Min Matter Collected 358 | 250 67 41 Remotely . | . . . Salvage Created 424 | 153 208 63 Parts 23 | 13 10 . Haulers Intercepted . | . . . Recyclers Shooed . | . . . Parts Field Recycled . | . . . Retrieved Matter . | . . . Parts Self-Destructed . | . . . Prevented . | . . . Kills | -11 -10 -10 ------- Run | Jun Mat Min Combat Hostiles Destroyed 8 | . 4 4 Guns 7 | . 3 4 Classes Destroyed 5 | 2 2 1 Tunneler 4 | 4 . . Recycler 1 | 1 . . Watcher 1 | . 1 . Grunt 4 | . 4 . Assembled 4 | . . 4 Best Kill Streak 4 | 3 2 4 Combat Bots Only 4 | . 2 4 Max Kills in Single Turn 1 | 1 1 1 Gunslinging . | . . . Exploded . | . . . Melee . | . . . Uniques/NPCs Destroyed . | . . . Combat | -11 -10 -10 -------- Run | Jun Mat Min Damage Taken 992 | 39 327 626 Core 272 | . 85 187 Absorbed by Shields . | . . . Core Remaining (%) 100 | 100 . . Volleys Fired 83 | 25 33 25 Largest 2 | 1 2 2 Hottest 60 | 40 60 40 Shots Fired 94 | 25 36 33 Gun 83 | 25 36 22 Cannon . | . . . Launcher . | . . . Special 11 | . . 11 Kinetic 32 | . 10 22 Thermal 11 | . . 11 Explosive . | . . . Electromagnetic 51 | 25 26 . Robot Hit Streak 9 | 4 9 6 Robot Miss Streak 5 | 5 5 3 Penetration Max . | . . . Secondary Targets . | . . . Shots Hit Robots 58 | 14 23 21 Core Hits 30 | 6 10 14 Critical Kills . | . . . Critical Parts Destroyed . | . . . Critical Strikes . | . . . Melee Attacks . | . . . Impact . | . . . Slashing . | . . . Piercing . | . . . Sneak Attacks . | . . . Combat Hostiles . | . . . Follow-up Attacks . | . . . Damage Inflicted 794 | 343 288 163 Guns 623 | 189 288 146 Cannons . | . . . Explosions 154 | 154 . . Melee . | . . . Ramming . | . . . Kinetic 212 | . 66 146 Thermal 171 | 154 . 17 Explosive . | . . . Electromagnetic 411 | 189 222 . Impact . | . . . Slashing . | . . . Piercing . | . . . Highest Corruption . | . . . Average Corruption . | . . . Corruption Purged . | . . . Corruption Blocked . | . . . Overload Shots . | . . . Overflow Damage 4 | 4 . . Projectiles . | . . . Explosions 4 | 4 . . Melee . | . . . Knockbacks . | . . . Impact . | . . . Kinetic . | . . . Secondary . | . . . Self-Inflicted Damage 39 | 39 . . Shots 1 | 1 . . Rammed . | . . . Targets Rammed . | . . . Kicked . | . . . Crushed . | . . . Highest Temperature 99 | 12 99 . Average Temperature 45 | 8 47 . Received Heat Transfer 203 | . 183 20 Siege Activations . | . . . Robots Corrupted 1 | . 1 . Combat Hostiles 1 | . 1 . Parts Fried 5 | 2 3 . Impact Corruptions . | . . . Robots Melted . | . . . Combat Hostiles . | . . . Parts Melted . | . . . Heat Transferred 225 | 100 . 125 Parts Sabotaged . | . . . Parts Stolen . | . . . Parts Stripped . | . . . Power Chain Reactions 4 | 4 . . Missiles Intercepted . | . . . Alert | -11 -10 -10 ------- Run | Jun Mat Min Peak Influence 127 | 25 127 64 Initial 49 | . 16 49 Average 52 | 11 73 49 Maximum Alert Level . | . . . Low Security (%) 100 | 100 100 100 Level 1 . | . . . Level 2 . | . . . Level 3 . | . . . Level 4 . | . . . Level 5 . | . . . High Security . | . . . Max Security . | . . . Squads Dispatched 2 | . 2 . Investigation . | . . . Extermination . | . . . Reinforcement 2 | . 2 . Assault . | . . . Garrison . | . . . Intercept . | . . . Searches Triggered . | . . . Construction Impeded . | . . . Haulers Reinforced . | . . . Active Scanning Responses . | . . . Cargo Convoy Interrupts . | . . . Stealth | -11 -10 -10 --------- Run | Jun Mat Min Distress Signals . | . . . Communications Jammed . | . . . Distress Signals . | . . . Times Spotted 21 | . 7 14 Peak Tracking Total 6 | . 2 6 Tactical Retreats 2 | . . 2 Traps | -11 -10 -10 ------- Run | Jun Mat Min Traps Triggered . | . . . Indirectly . | . . . Trap Hack Attempts . | . . . Triggered . | . . . Disarmed . | . . . Reprogrammed . | . . . Reused . | . . . Traps Extracted . | . . . Installed . | . . . Triggered . | . . . Machines | -11 -10 -10 ---------- Run | Jun Mat Min Machines Disabled 3 | . 3 . Max in Single Turn 1 | . 1 . Machines Repaired . | . . . Machines Sabotaged . | . . . Overloaded Fab Kills . | . . . Hacking | -11 -10 -10 --------- Run | Jun Mat Min Machines Accessed 1 | . 1 . Terminals 1 | . 1 . Fabricators . | . . . Repair Stations . | . . . Recycling Units . | . . . Scanalyzers . | . . . Garrison Access . | . . . Total Hacks 4 | . 4 . Successful 2 | . 2 . Failed 2 | . 2 . Catastrophic . | . . . Database Lockouts . | . . . Manual . | . . . Terminals 4 | . 4 . Fabricators . | . . . Repair Stations . | . . . Recycling Units . | . . . Scanalyzers . | . . . Garrison Access . | . . . Terminal Hacks 2 | . 2 . Branch Access Points 1 | . 1 . Alert Level 1 | . 1 . Fabricator Hacks . | . . . Repair Station Hacks . | . . . Recycling Unit Hacks . | . . . Scanalyzer . | . . . Garrison Access Hacks . | . . . Unauthorized Hacks . | . . . Terminals . | . . . Fabricators . | . . . Repair Stations . | . . . Recycling Units . | . . . Scanalyzers . | . . . Garrison Access . | . . . Data Cores Recovered . | . . . Used . | . . . Hacking Detections . | . . . Full Trace Events . | . . . Feedback Events . | . . . Feedback Blocked . | . . . Robot Schematics Acquired . | . . . Robots Built . | . . . Authchips . | . . . Time . | . . . Total Robot Build Rating . | . . . Part Schematics Acquired . | . . . Parts Built . | . . . Authchips . | . . . Time . | . . . Total Part Build Rating . | . . . Parts Repaired . | . . . Time . | . . . Parts Recycled . | . . . Recycled Matter . | . . . Retrieved Matter . | . . . Retrieved Components . | . . . Parts Scanalyzed . | . . . Part Schematics Acquired . | . . . Parts Damaged . | . . . Bothacking | -11 -10 -10 ------------ Run | Jun Mat Min Used RIF Installer . | . . . Robots Hacked . | . . . Non-combat . | . . . Combat . | . . . Robot Hacks Applied . | . . . Relay Couplers Released . | . . . Fabnet Peak Effective % . | . . . Robots Rewired . | . . . Allies Hacked . | . . . Hacks Repelled . | . . . Allies | -11 -10 -10 -------- Run | Jun Mat Min Total Allies 1 | . . 1 Largest Group 1 | . . 1 Highest-Rated Group 31 | . . 31 Highest-Rated Ally 31 | . . 31 Total Orders . | . . . Ally Attacks 7 | . . 7 Total Damage 126 | . . 126 Kills 3 | . . 3 Allies Corrupted . | . . . Allies Melted . | . . . Intel | -11 -10 -10 ------- Run | Jun Mat Min Robot Analysis Total . | . . . Derelict Logs Recovered . | . . . Drone Launches . | . . . Drone Recoveries . | . . . Exploration | -11 -10 -10 ------------- Run | Jun Mat Min Turns Passed 1215 | 282 586 347 Spaces Moved 756 | 194 330 232 Core 22 | 22 . . Treads . | . . . Legs 734 | 172 330 232 Wheels . | . . . Hover . | . . . Flight . | . . . Fastest Speed 50 | 50 120 120 Average Speed 117 | 112 120 120 Slowest Speed 120 | 120 120 120 Overloaded Moves . | . . . Propulsion Burnouts . | . . . Robots Hopped . | . . . Cave-ins Triggered . | . . . Exploration Rate (%) 27 | 8 41 32 Regions Visited 2 Branch Regions 1 Pre-discovered Areas . | . . . Known Exits Taken 1 | . 1 . Unknown Exits Taken 1 | 1 . . Scrap Searched 1 | . . 1 Spaces Dug . | . . . Terrain Destroyed 9 | 9 . . Melee . | . . . Projectile . | . . . AOE 9 | 9 . . Terrain Rammed . | . . . Walls Destroyed . | . . . Machines Disabled . | . . . Actions | -11 -10 -10 --------- Run | Jun Mat Min Total 991 | 233 488 270 Wait 115 | . 107 8 Move 754 | 193 329 232 Hop . | . . . Pick Up 21 | 10 9 2 Fast Attach . | . . . Attach 9 | 5 2 2 Detach . | . . . Swap 4 | . 4 . Drop 5 | . 4 1 Fire 83 | 25 33 25 Melee . | . . . Ram . | . . . Kick . | . . . Crush . | . . . Escape Stasis . | . . . Rewire . | . . . Trap . | . . . Miscellaneous . | . . . Route ------- -11/Junkyard -10/Materials (discovered 4 exits: [*Mat x2] / *Min x2) -10/Mines History --------- Turn | Location | Event 14 | -11/Junkyard | Discovered new exit (range 15) 283 | -11/Junkyard | Entered Materials 304 | -10/Materials | Build established: Mutant 346 | -10/Materials | Discovered new exit (range 16) 800 | -10/Materials | Discovered new exit (range 15) 842 | -10/Materials | Discovered new exit (range 15) 852 | -10/Materials | Identified exit to Mines 869 | -10/Materials | Entered Mines 872 | -10/Mines | Received a Mining Laser from a helpful Derelict 1021 | -10/Mines | Assembled infested the area 1026 | -10/Mines | Assisted by a Guerilla fighting off Assembled 1154 | -10/Mines | Core integrity fell below 50% 1210 | -10/Mines | Core integrity fell below 20% 1216 | -10/Mines | Destroyed by as-81900 with Assembled Blade Last Messages --------------- I've been tracking a group of Assembled to figure out where they're coming from, and they're closing on this area, come on!" 01071_ T-07 Excavator destroyed. 01134_ as-95390 destroyed. 01141_ RZ-7AP(g): "You look like you can take it from here!" 01141_ RZ-7AP(g) slips back into the shadows. 01142_ as-99373 destroyed. 01146_ Acquired 1 matter. 01158_ as-03605 destroyed. 01175_ as-69220 destroyed. 01180_ as-65553 destroyed. 01183_ Acquired 13 matter. 01184_ Acquired 1 matter. 01199_ Lgt. Assault Rifle severed. 01206_ Welding Torch destroyed. 01209_ Acquired 10 matter. 01209_ Imp. Terrain Scanner destroyed. 01209_ Aluminum Leg destroyed. 01210_ Acquired 3 matter. 01211_ Aluminum Leg destroyed. Map ----- +----------------------------------------------------+ | | | | | | | | | | | ?????????????????????????????????????????????????? | | ?????????????????????????????????????????????????? | | ?????????????????????????????????????????????????? | | ?????????????????????????????????????????????????? | | ?????????????????????????????????????????????????? | | ?????????????????????????????????????????????????? | | ??????????????????????? ????????#????????????????? | | ???????????????#? ???????????????#???????????????? | | ????????????????????? ???????????????????????????? | | ???????????????? ?????????????#??##??????????????? | | ????????????????????????????????#????????????????? | | ??????????????????????? ????#????????????????????? | | ????????????????????? ???????????????????????????? | | ???????? ??????????? ???#?????#?#?###???????????? | | ????????? ??? ???? ????????????????#???????????? | | ??????????? ?????????#?????????????? ??????????? | | ???????????? ? ????????#??????##??????????????? | | ?????????? ????# ?????#?#????#?#??#?????????????? | | ???????????? ???# #######????#?????????????????? | | ????????? ? ????# %%aa #?????????? ???????????? | | ?????????????#??# ####@#??####????????????????? | | ?????????? ????# #???#a#??# ???????? ????????? | | ????????????? ##???## #?## #?#????#??????????? | | ?????????? #??????# #??# #?????????????????? | | ????????? ???#????# #??# #???????##?#??????? | | ???????? ????????## #??# #??##?#??#????????? | | ???????? ?????????# #### #?#????#??????????? | | ?????????###?? ????????## ##?#?#?#???????##?? | | ????????????#???????????###### ##?????#??????? #? | | ??????????????? ??????########=###???####???# # | | ??????????????#????# !%|#?## ###?# | | ??????????????#???##??########## #?# #??# | | ????????????????????????????#??# ### ### | | ????????????????#?#?????#??##??# ## | | ????????????????#???##?????#???# %% #????? | | ??????????????????????????????## ###???? | | ??????????????????????#??????#?#### ##?????#? | | ???????????????????? ??????#?????## ##???????? | | ????????????????????????#??#????## ##????????? | | ??????????????????????? ??????## ####????#???#? | | ??????????????????????????#????# ##?#???????#??? | | ??????????????????????????????## #???????#?????? | | ??????????????????????? ????### ##????????????# | | ????????????????????? ? ?#??# #????????????? | | ??????????????????#?????????# #??##????????? | +----------------------------------------------------+ Best States ------------- Heat Dissipation 25 Energy Generation 10 Energy Capacity 250 Matter Stores 300 Matter Capacity 300 Sight Range 16 Terrain Scan Range 16 Terrain Scan Density 10 Evasion (%) 55 Item Schematics ----------------- None Robot Schematics ------------------ None Fabricated ------------ Nothing Alien Tech Used ----------------- None Achievements -------------- None Challenges ------------ None Game ------ Seed SurgeAssemblyBarrier Manual? 0 Play Time 00:15:35 Cumulative 105.2 hours Start 2023.12.18 @ 22:24:07 End 2023.12.18 @ 22:47:58 Sessions 1 Manual Loads 0 Difficulty Rogue Special Mode None Game No. 90 Rogue 90 Adventurer 0 Explorer 0 Win Type - Total 0 Types 0/0/0/0/0/0/0/0/0 Lore% 35 Gallery% 38 Achievement% 30 Wizard Run 0 Options --------- ASCII 0 Keyboard 0 Movement Arrows Keybinds 0 Fullscreen 1 Font 18/SmallcapsGlow Map View 76x50 Tactical HUD 1 Map Filters NONE Filters NONE Steam 1 RUN: 7c486b1f-a553-4732-91b5-8146a8276ca4